Workbook

Sheet Registro
A1: TITULO | B1: ESTUDIO DE IMPACTO AMBIENTAL: PROCEDIMIENTO Y HERRAMIENTAS
A3: AUTORES | B3: ROBERTO PECHE GONZALEZ
B4: DOLORES ENCINAS MALAGON
B5: ZURIÑE GOMEZ DE BALUGERA LOPEZ DE ALDA
B6: MARIA ARRITOKIETA ORTUZAR IRAGORRI
A8: ISBN: | B8: 978-84-613-9696-2

Sheet 284
A1: nº de indicador: | B1: 284 | C1: función de transformación: | D1: CA=0 | E1: -100<I<-20
A2: Indicador: | B2: Variación del empleo en las actividades afectadas | D2: CA=2,5E-02I + 5E-01 | E2: -20<I<0
A3: fórmula del indicador | D3: CA=5E-03I + 5E-01 | E3: 0<I<100
A4: unidad del indicador:
A5: rango de valores del indicador: | B5: -100 y 100 | C5: valor del indicador | D5: 20
A6: Tipo de indicador | B6: 2 (T=0,25) | C6: calidad ambiental | D6: =IF(D5<-100,"valor del indicador fuera de rango",IF(D5<=-20,0,IF(D5<=0,0.025*D5+0.5,IF(D5<=100,0.005*D5+0.5,IF(D5>100,"valor del indicador fuera rango"))))) -> 0.600
A7: valor del indicador | B7: calidad ambiental | C7: representación de la función de transformación
A8: -100 | B8: 0.000
A9: -80 | B9: 0.000
A10: -60 | B10: 0.000
A11: -40 | B11: 0.000
A12: =+A11+10 -> -30 | B12: 0.000
A13: -20 | B13: =(0.025*A13)+(0.5) -> 0.000
A14: -10 | B14: =(0.025*A14)+(0.5) -> 0.250
A15: 0 | B15: =(0.025*A15)+(0.5) -> 0.500
A16: 10 | B16: =(0.005*A16)+(0.5) -> 0.550
A17: 20 | B17: 0.600
A18: 30 | B18: 0.650
A19: 40 | B19: 0.700
A20: 50 | B20: 0.750
A21: 60 | B21: 0.800
A22: 70 | B22: 0.850
A23: 80 | B23: 0.900
A24: 90 | B24: 0.950
A25: 100 | B25: 1.000

Sheet 285
A1: nº de indicador: | B1: 285 | C1: función de transformación: | D1: CA=-1E-04I^2 + 2E-02I | E1: 0<I<100
A2: Indicador: | B2: % de empleo generado | D2: CA=0 | E2: I<0
A3: fórmula del indicador
A4: unidad del indicador:
A5: rango de valores del indicador: | B5: 0 - 100 | C5: valor del indicador | D5: 20
A6: Tipo de indicador | B6: 2 (T=0,25) | C6: calidad ambiental | D6: =IF(D5<0,"valor del indicador fuera de rango",IF(D5<=100,-0.0001*(D5^2)+0.02*(D5),IF(D5>100,"valor del indicador fuera rango"))) -> 0.360
A7: valor del indicador | B7: calidad ambiental | C7: representación de la función de transformación
A8: 0 | B8: =(-0.0001*A8^2)+(0.02*A8) -> 0.000
A9: =+A8+10 -> 10 | B9: 0.190
A10: =+A9+10 -> 20 | B10: 0.360
A11: 30 | B11: 0.510
A12: 40 | B12: 0.640
A13: 50 | B13: 0.750
A14: 60 | B14: 0.840
A15: 70 | B15: 0.910
A16: 80 | B16: 0.960
A17: 90 | B17: 0.990
A18: 100 | B18: 1.000
A19: 110 | B19: 0.990
A20: 120 | B20: 0.960
A21: 130 | B21: 0.910
A22: 140 | B22: 0.840
A23: 150 | B23: 0.750
A24: 160 | B24: 0.640
A25: 170 | B25: 0.510

Sheet 286
A1: nº de indicador: | B1: 286 | C1: función de transformación: | D1: CA=I | E1: 0<I<1
A2: Indicador: | B2: Aptitud para el uso extractivo | D2: CA=1 | E2: 1<I<4
A3: fórmula del indicador
A4: unidad del indicador:
A5: rango de valores del indicador: | B5: 0 - 4 | C5: valor del indicador | D5: 0.5
A6: Tipo de indicador | B6: 3 (T=0,50) | C6: calidad ambiental | D6: =IF(D5<0,"valor del indicador fuera de rango",IF(D5<=1,D5,IF(D5<=4,1,"valor del indicador fuera rango"))) -> 0.500
A7: valor del indicador | B7: calidad ambiental | C7: representación de la función de transformación
A8: 0.0 | B8: =A8 -> 0.00
A9: =+A8+0.2 -> 0.2 | B9: 0.20
A10: 0.4 | B10: 0.40
A11: 0.6 | B11: 0.60
A12: 0.8 | B12: 0.80
A13: 1.0 | B13: 1.00
A14: 1.2 | B14: =1 -> 1.00
A15: 1.4 | B15: =1 -> 1.00
A16: 1.6 | B16: =1 -> 1.00
A17: 1.8 | B17: =1 -> 1.00
A18: 2.0 | B18: =1 -> 1.00
A19: 2.2 | B19: =1 -> 1.00
A20: 2.4 | B20: =1 -> 1.00
A21: 2.6 | B21: =1 -> 1.00
A22: 2.8 | B22: =1 -> 1.00
A23: 3.0 | B23: =1 -> 1.00
A24: 3.4 | B24: =1 -> 1.00
A25: 4.0 | B25: =1 -> 1.00

Sheet 287-289
A1: nº de indicador: | B1: 287 | C1: función de transformación: | D1: CA=-2E-05I^2+1 | E1: 0<I<100
A2: Indicador: | B2: % del suelo desarrollado según distintos tipos de densidad (válido para suelo urbano)(densidad débil)
A3: fórmula del indicador
A4: unidad del indicador:
A5: rango de valores del indicador: | B5: 0 - 100 | C5: valor del indicador | D5: 30
A6: Tipo de indicador | B6: 2 (T=0,25) | C6: calidad ambiental | D6: =IF(D5<0,"valor del indicador fuera de rango",IF(D5<=100,-0.00002*D5^2+1,"valor del indicador fuera de rango")) -> 0.982
A7: valor del indicador | B7: calidad ambiental | C7: representación de la función de transformación
A8: 0 | B8: =-0.00002*A8^2+1 -> 1.000
A9: =+A8+5 -> 5 | B9: 1.000
A10: 10 | B10: 0.998
A11: 15 | B11: 0.996
A12: 20 | B12: 0.992
A13: 25 | B13: 0.988
A14: 30 | B14: 0.982
A15: 35 | B15: 0.976
A16: 40 | B16: 0.968
A17: =+A16+10 -> 50 | B17: 0.950
A18: 60 | B18: 0.928
A19: 70 | B19: 0.902
A20: 80 | B20: 0.872
A21: 90 | B21: 0.838
A22: 100 | B22: 0.800
A25: nº de indicador: | B25: 288 | C25: función de transformación: | D25: CA=-1E-04I^2+1 | E25: 0<I<50
A26: Indicador: | B26: % del suelo desarrollado según distintos tipos de densidad (válido para suelo urbano)(densidad media) | D26: CA=1,6E-04I^2-3,2E-02I+1,950 | E26: 50<I<100
A27: fórmula del indicador
A28: unidad del indicador:
A29: rango de valores del indicador: | B29: 0 - 100 | C29: valor del indicador | D29: 70
A30: Tipo de indicador | B30: 2 (T=0,25) | C30: calidad ambiental | D30: =IF(D29<0,"valor del indicador fuera de rango",IF(D29<=50,-0.0001*(D29^2)+1,IF(D29<=100,(0.00016*(D29^2))-(0.032*D29)+1.95,"valor del indicador fuera rango"))) -> 0.494
A31: valor del indicador | B31: calidad ambiental | C31: representación de la función de transformación
A32: 0 | B32: =-0.0001*A32^2+1 -> 1.000
A33: =+A32+5 -> 5 | B33: 0.998
A34: 10 | B34: 0.990
A35: 15 | B35: 0.978
A36: 20 | B36: 0.960
A37: 25 | B37: 0.938
A38: 30 | B38: 0.910
A39: 35 | B39: 0.878
A40: 40 | B40: 0.840
A41: =+A40+10 -> 50 | B41: =0.00016*A41^2-0.032*A41+1.95 -> 0.750
A42: 60 | B42: 0.606
A43: 70 | B43: 0.494
A44: 80 | B44: 0.414
A45: 90 | B45: 0.366
A46: 100 | B46: 0.350
A49: nº de indicador: | B49: 289 | C49: función de transformación: | D49: CA=-3,4E-04I^2+1 | E49: 0<I<25
A50: Indicador: | B50: % del suelo desarrollado según distintos tipos de densidad (válido para suelo urbano)(densidad alta) | D50: CA=-1,33E-02I+1,130 | E50: 25<I<70
A51: fórmula del indicador | D51: CA=8,33E-05I^2-2,08E-02I+1,250 | E51: 70<I<100
A52: unidad del indicador:
A53: rango de valores del indicador: | B53: 0 - 100 | C53: valor del indicador | D53: 80
A54: Tipo de indicador | B54: 2 (T=0,25) | C54: calidad ambiental | D54: =IF(D53<0,"valor del indicador fuera de rango",IF(D53<=25,-0.00034*(D53^2)+1,IF(D53<=70,(-0.0133*(D53)+1.13),IF(D53<=100,0.0000833*(D53^2)-0.0208*(D53)+1.25,"valor del indicador fuera rango")))) -> 0.119
A55: valor del indicador | B55: calidad ambiental | C55: representación de la función de transformación
A56: 0 | B56: =-0.00034*A56^2+1 -> 1.000
A57: =+A56+5 -> 5 | B57: 0.992
A58: 10 | B58: 0.966
A59: 15 | B59: 0.924
A60: 20 | B60: 0.864
A61: 25 | B61: 0.788
A62: 30 | B62: =-0.0133*A62+1.13 -> 0.731
A63: 35 | B63: 0.665
A64: 40 | B64: 0.598
A65: =+A64+10 -> 50 | B65: 0.465
A66: 60 | B66: 0.332
A67: 70 | B67: 0.199
A68: 80 | B68: =0.0000833*A68^2-0.0208*A68+1.25 -> 0.119
A69: 90 | B69: =0.0000833*A69^2-0.0208*A69+1.25 -> 0.053
A70: 100 | B70: =0.0000833*A70^2-0.0208*A70+1.25 -> 0.003
